[Event "4NCL 2021-22"]
[Site "England"]
[Date "2022.03.26"]
[Round "5.49"]
[White "Zakarian, David"]
[Black "Jones, Steven A"]
[Result "0-1"]
[ECO "C47"]
[WhiteElo "2316"]
[BlackElo "2215"]
[Annotator "ChessBase"]
[PlyCount "80"]
[EventDate "2021.11.27"]
[EventType "team-tourn"]
[EventCountry "ENG"]
[SourceTitle "playchess.com"]
[Source "ChessBase"]
[SourceQuality "1"]
[TimeControl "40/6000+30:3000+30"]

1. e4 {[%emt 0:00:03]} e5 {[%emt 0:00:40]} 2. Nf3 {[%emt 0:00:18]} Nc6 {[%emt 0:00:40]} 3. d4 {[%emt 0:03:32]} exd4 {[%emt 0:00:07]} 4. Nxd4 {[%emt 0:00:04]} Nf6 {[%emt 0:01:57]} 5. Nc3 {[%emt 0:04:10]} Bc5 {[%emt 0:07:23]} 6. Nxc6 {[%emt 0:02:20]} bxc6 {[%emt 0:03:26]} 7. Bd3 {[%emt 0:00:25]} d6 {[%emt 0:02:43]} 8. h3 {[%emt 0:00:55]} O-O {[%emt 0:04:48]} 9. O-O {[%emt 0:03:58]} Re8 {[%emt 0:04:55]} 10. Na4 {[%emt 0:04:10]} Bb6 {[%emt 0:02:18]} 11. Nxb6 {[%emt 0:01:18]} axb6 {[%emt 0:00:15]} 12. Re1 {[%emt 0:01:39]} c5 {[%emt 0:07:56]} 13. Bg5 {[%emt 0:03:59]} h6 {[%emt 0:13:36]} 14. Bh4 {[%emt 0:01:48]} Bb7 {[%emt 0:01:17]} 15. f3 {[%emt 0:12:28]} g5 {[%emt 0:10:50]} 16. Bf2 {[%emt 0:00:10]} Nh5 {[%emt 0:00:47]} 17. g3 {[%emt 0:01:47]} Qf6 {[%emt 0:02:33]} 18. c3 {[%emt 0:05:05]} d5 {[%emt 0:09:31]} 19. Bb5 {[%emt 0:05:43]} Re5 {[%emt 0:12:56]} 20. Re3 {[%emt 0:15:41]} dxe4 {[%emt 0:03:01]} 21. fxe4 {[%emt 0:02:50]} Qg6 {[%emt 0:00:10]} 22. Qd7 {[%emt 0:06:14]} Rc8 {[%emt 0:00:57]} 23. Bd3 {[%emt 0:11:43]} Nf6 {[%emt 0:00:54]} 24. Qa4 {[%emt 0:00:05]} Ra8 {[%emt 0:02:15]} 25. Qb3 {[%emt 0:02:28]} Rae8 {[%emt 0:01:22]} 26. Rae1 {[%emt 0:00:58]} Bxe4 {[%emt 0:01:49]} 27. g4 {[%emt 0:03:04]} h5 {[%emt 0:06:02]} 28. Bg3 {[%emt 0:06:17]} c4 {[%emt 0:00:07]} 29. Bxc4 {[%emt 0:01:04]} R5e7 {[%emt 0:01:13]} 30. Bb5 {[%emt 0:06:47]} Bd5 {[%emt 0:02:23]} 31. Rxe7 {[%emt 0:00:12]} Rxe7 {[%emt 0:00:05]} 32. c4 {[%emt 0:02:54]} Rxe1+ {[%emt 0:00:41]} 33. Bxe1 {[%emt 0:00:01]} Qe4 {[%emt 0:00:33]} 34. cxd5 {[%emt 0:00:09]} Qxe1+ {[%emt 0:00:03]} 35. Bf1 {[%emt 0:02:09]} hxg4 {[%emt 0:00:35]} 36. d6 {[%emt 0:00:21]} Ne4 {[%emt 0:02:11]} 37. Qc2 {[%emt 0:00:52]} Nd2 {[%emt 0:03:44]} 38. Qf5 {[%emt 0:00:40]} Qe3+ {[%emt 0:00:42]} 39. Kh1 {[%emt 0:00:46]} cxd6 {[%emt 0:00:56]} 40. Bg2 {[%emt 0:00:46]} Qe1+ {[%emt 0:00:12]} 0-1

[Event "4NCL 2021-22"]
[Site "England"]
[Date "2022.03.26"]
[Round "5.51"]
[White "Pozimski, Szymon"]
[Black "Blackburn, Jonathan L B"]
[Result "1/2-1/2"]
[ECO "E92"]
[WhiteElo "2001"]
[BlackElo "2227"]
[Annotator "ChessBase"]
[PlyCount "66"]
[EventDate "2021.11.27"]
[EventType "team-tourn"]
[EventCountry "ENG"]
[SourceTitle "playchess.com"]
[Source "ChessBase"]
[SourceQuality "1"]
[TimeControl "40/6000+30:3000+30"]

1. Nf3 {[%emt 0:01:08]} Nf6 {[%emt 0:00:19]} 2. c4 {[%emt 0:00:09]} g6 {[%emt 0:00:34]} 3. Nc3 {[%emt 0:00:07]} Bg7 {[%emt 0:00:12]} 4. e4 {[%emt 0:00:09]} d6 {[%emt 0:00:08]} 5. d4 {[%emt 0:00:06]} O-O {[%emt 0:00:30]} 6. Be2 {[%emt 0:00:04]} Nbd7 {[%emt 0:00:51]} 7. h3 {[%emt 0:05:52]} e5 {[%emt 0:02:15]} 8. dxe5 {[%emt 0:05:11]} dxe5 {[%emt 0:01:09]} 9. Be3 {[%emt 0:01:07]} c6 {[%emt 0:07:20]} 10. b4 {[%emt 0:05:18]} Qe7 {[%emt 0:16:41]} 11. Rb1 {[%emt 0:06:32]} Rd8 {[%emt 0:13:47]} 12. Nd2 {[%emt 0:15:22]} Nf8 {[%emt 0:02:57]} 13. Bc5 {[%emt 0:02:24]} Qc7 {[%emt 0:06:54]} 14. Bxf8 {[%emt 0:04:39]} Bxf8 {[%emt 0:01:08]} 15. Qc2 {[%emt 0:04:34]} a5 {[%emt 0:05:45]} 16. a3 {[%emt 0:00:54]} Ne8 {[%emt 0:10:06]} 17. c5 {[%emt 0:21:32]} axb4 {[%emt 0:02:32]} 18. axb4 {[%emt 0:03:07]} b6 {[%emt 0:04:19]} 19. cxb6 {[%emt 0:07:29]} Qxb6 {[%emt 0:00:05]} 20. b5 {[%emt 0:00:29]} Be6 {[%emt 0:05:30]} 21. O-O {[%emt 0:07:34]} cxb5 {[%emt 0:08:24]} 22. Rxb5 {[%emt 0:09:14]} Qc7 {[%emt 0:00:30]} 23. Ndb1 {[%emt 0:01:26]} Ra2 {[%emt 0:07:29]} 24. Rb2 {[%emt 0:01:29]} Rxb2 {[%emt 0:00:05]} 25. Qxb2 {[%emt 0:00:03]} Bc5 {[%emt 0:00:33]} 26. Nb5 {[%emt 0:02:31]} Qb8 {[%emt 0:00:34]} 27. Qc2 {[%emt 0:01:07]} Rc8 {[%emt 0:01:01]} 28. Qd3 {[%emt 0:01:07]} Bb6 {[%emt 0:05:25]} 29. N1c3 {[%emt 0:00:44]} Bc4 {[%emt 0:02:26]} 30. Qf3 {[%emt 0:00:56]} Bxb5 {[%emt 0:02:23]} 31. Nxb5 {[%emt 0:00:23]} Nd6 {[%emt 0:00:46]} 32. Nxd6 {[%emt 0:00:06]} Qxd6 {[%emt 0:00:03]} 33. Bd1 {[%emt 0:01:33]} Kg7 {[%emt 0:02:01]} 1/2-1/2

[Event "4NCL 2021-22"]
[Site "England"]
[Date "2022.03.26"]
[Round "5.52"]
[White "Redmond, John P."]
[Black "Dickinson, Tim"]
[Result "1-0"]
[ECO "A40"]
[WhiteElo "2210"]
[BlackElo "2047"]
[Annotator "ChessBase"]
[PlyCount "79"]
[EventDate "2021.11.27"]
[EventType "team-tourn"]
[EventCountry "ENG"]
[SourceTitle "playchess.com"]
[Source "ChessBase"]
[SourceQuality "1"]
[TimeControl "40/6000+30:3000+30"]

1. d4 {[%emt 0:00:07]} e6 {[%emt 0:00:40]} 2. c4 {[%emt 0:00:56]} Bb4+ {[%emt 0:00:16]} 3. Nd2 {[%emt 0:00:15]} d5 {[%emt 0:05:09]} 4. Qa4+ {[%emt 0:00:51]} Nc6 {[%emt 0:00:08]} 5. e3 {[%emt 0:00:09]} a6 {[%emt 0:02:06]} 6. a3 {[%emt 0:20:33]} Be7 {[%emt 0:13:47]} 7. Ngf3 {[%emt 0:01:31]} Bd7 {[%emt 0:11:33]} 8. Qc2 {[%emt 0:00:21]} Nf6 {[%emt 0:00:44]} 9. Bd3 {[%emt 0:03:53]} dxc4 {[%emt 0:09:39]} 10. Nxc4 {[%emt 0:02:39]} b5 {[%emt 0:00:25]} 11. Nce5 {[%emt 0:03:08]} Nxe5 {[%emt 0:03:29]} 12. dxe5 {[%emt 0:13:09]} Nd5 {[%emt 0:03:35]} 13. Bxh7 {[%emt 0:00:55]} c5 {[%emt 0:02:10]} 14. Bd3 {[%emt 0:01:52]} Rc8 {[%emt 0:16:18]} 15. Be2 {[%emt 0:10:47]} c4 {[%emt 0:04:20]} 16. e4 {[%emt 0:09:08]} Nb6 {[%emt 0:03:24]} 17. O-O {[%emt 0:00:52]} Na4 {[%emt 0:01:05]} 18. Bd2 {[%emt 0:02:40]} Nc5 {[%emt 0:01:15]} 19. Nd4 {[%emt 0:12:17]} Bc6 {[%emt 0:11:45]} 20. Nxc6 {[%emt 0:00:55]} Rxc6 {[%emt 0:00:06]} 21. Be3 {[%emt 0:02:50]} Qb8 {[%emt 0:05:53]} 22. f4 {[%emt 0:03:03]} Kd7 {[%emt 0:03:23]} 23. Rfd1+ {[%emt 0:04:06]} Kc8 {[%emt 0:00:57]} 24. Kh1 {[%emt 0:08:04]} Nb3 {[%emt 0:02:37]} 25. Rab1 {[%emt 0:00:32]} g5 {[%emt 0:00:10]} 26. a4 {[%emt 0:03:37]} gxf4 {[%emt 0:01:04]} 27. Bxf4 {[%emt 0:00:06]} Kc7 {[%emt 0:01:29]} 28. axb5 {[%emt 0:00:28]} axb5 {[%emt 0:01:00]} 29. Rd6 {[%emt 0:00:25]} Bxd6 {[%emt 0:02:55]} 30. exd6+ {[%emt 0:00:02]} Kd7 {[%emt 0:00:13]} 31. Rd1 {[%emt 0:00:23]} Qa7 {[%emt 0:01:27]} 32. Qc3 {[%emt 0:01:02]} Qb8 {[%emt 0:01:21]} 33. Qf6 {[%emt 0:01:04]} Qf8 {[%emt 0:00:11]} 34. e5 {[%emt 0:01:03]} Ra6 {[%emt 0:00:56]} 35. Bg5 {[%emt 0:01:16]} Ra1 {[%emt 0:00:47]} 36. Rxa1 {[%emt 0:00:18]} Nxa1 {[%emt 0:00:05]} 37. Qf2 {[%emt 0:00:11]} Rxh2+ {[%emt 0:00:50]} 38. Kxh2 {[%emt 0:00:26]} Qh8+ {[%emt 0:00:05]} 39. Kg1 {[%emt 0:00:20]} Qxe5 {[%emt 0:00:13]} 40. Qxf7+ {[%emt 0:00:18]} 1-0

[Event "4NCL 2021-22"]
[Site "England"]
[Date "2022.03.26"]
[Round "5.53"]
[White "Cole, James"]
[Black "Kett, Tim"]
[Result "0-1"]
[ECO "C73"]
[WhiteElo "2040"]
[BlackElo "2136"]
[Annotator "NA"]
[PlyCount "72"]
[EventDate "2021.11.27"]
[EventType "team-tourn"]
[EventCountry "ENG"]
[SourceTitle "playchess.com"]
[Source "ChessBase"]
[SourceQuality "1"]
[TimeControl "40/6000+30:3000+30"]

1. e4 {[%emt 0:00:04]} e5 {[%emt 0:00:10]} 2. Nf3 {[%emt 0:00:03]} Nc6 {[%emt 0:00:06]} 3. Bb5 {[%emt 0:00:19]} a6 {[%emt 0:01:27]} 4. Ba4 {[%emt 0:00:04]} d6 {[%emt 0:01:25]} 5. Bxc6+ {[%emt 0:02:22]} bxc6 {[%emt 0:02:09]} 6. d4 {[%emt 0:00:14]} f6 {[%emt 0:01:15]} 7. Nc3 {[%emt 0:01:35]} Ne7 {[%emt 0:05:36]} 8. Be3 {[%emt 0:01:35]} Ng6 {[%emt 0:05:05]} 9. Qe2 {[%emt 0:00:41]} a5 {[%emt 0:10:20]} 10. h4 {[%emt 0:03:05]} Ba6 {[%emt 0:04:21]} 11. Qd2 {[%emt 0:01:46]} Qb8 {[%emt 0:08:10]} 12. O-O-O {[%emt 0:06:58]} h5 {[%emt 0:04:39]} 13. dxe5 {[%emt 0:10:44]} fxe5 {[%emt 0:01:14]} 14. Ng5 {[%emt 0:02:34]} Qb4 {[%emt 0:07:32]} 15. a3 {[%emt 0:19:49]} Qb7 {[%emt 0:00:56]} 16. Rde1 {[%emt 0:11:22]} Bc4 {[%emt 0:07:49]} 17. f4 {[%emt 0:07:23]} Rb8 {[%emt 0:04:18]} 18. Nd1 {[%emt 0:00:50]} Be7 {[%emt 0:12:18]} 19. Qc3 {[%emt 0:07:14]} Qb5 {[%emt 0:02:37]} 20. f5 {[%emt 0:02:14]} Nf8 {[%emt 0:00:31]} 21. Bd2 {[%emt 0:02:02]} a4 {[%emt 0:02:09]} 22. Ne3 {[%emt 0:03:42]} Bg8 {[%emt 0:00:21]} 23. Qb4 {[%emt 0:02:41]} Nd7 {[%emt 0:05:10]} 24. Qxb5 {[%emt 0:02:33]} Rxb5 {[%emt 0:00:21]} 25. Rhg1 {[%emt 0:01:47]} d5 {[%emt 0:03:19]} 26. c4 {[%emt 0:01:56]} dxc4 {[%emt 0:00:35]} 27. Kc2 {[%emt 0:01:55]} Nc5 {[%emt 0:01:42]} 28. Nd1 {[%emt 0:00:42]} Nd3 {[%emt 0:01:36]} 29. Re2 {[%emt 0:00:47]} Bc5 {[%emt 0:01:36]} 30. Rf1 {[%emt 0:01:41]} Bd4 {[%emt 0:03:57]} 31. Bc3 {[%emt 0:01:47]} Rh6 {[%emt 0:02:54]} 32. Kb1 {[%emt 0:01:42]} c5 {[%emt 0:00:37]} 33. f6 {[%emt 0:05:33]} Rxf6 {[%emt 0:00:22]} 34. Rxf6 {[%emt 0:00:05]} gxf6 {[%emt 0:00:05]} 35. Nf3 {[%emt 0:00:35]} Bh7 {[%emt 0:01:18]} 36. Kc2 {[%emt 0:03:33]} Nf4 {[%emt 0:03:03]} 0-1

[Event "4NCL 2021-22"]
[Site "England"]
[Date "2022.03.26"]
[Round "5.54"]
[White "Zeidler, Sven P."]
[Black "Wilson, Edgar"]
[Result "1-0"]
[ECO "C01"]
[WhiteElo "2172"]
[BlackElo "1872"]
[Annotator "ChessBase"]
[PlyCount "91"]
[EventDate "2021.11.27"]
[EventType "team-tourn"]
[EventCountry "ENG"]
[SourceTitle "playchess.com"]
[Source "ChessBase"]
[SourceQuality "1"]
[TimeControl "40/6000+30:3000+30"]

1. e4 {[%emt 0:00:03]} e6 {[%emt 0:13:21]} 2. d4 {[%emt 0:00:05]} d5 {[%emt 0:00:13]} 3. exd5 {[%emt 0:00:04]} exd5 {[%emt 0:00:08]} 4. Nf3 {[%emt 0:00:05]} Bd6 {[%emt 0:00:28]} 5. c4 {[%emt 0:00:05]} Nf6 {[%emt 0:00:45]} 6. Nc3 {[%emt 0:00:06]} O-O {[%emt 0:00:47]} 7. cxd5 {[%emt 0:00:12]} Nbd7 {[%emt 0:00:53]} 8. Bg5 {[%emt 0:00:19]} Nb6 {[%emt 0:00:36]} 9. Be2 {[%emt 0:02:04]} Be7 {[%emt 0:05:14]} 10. Bxf6 {[%emt 0:00:42]} Bxf6 {[%emt 0:00:10]} 11. Qb3 {[%emt 0:00:07]} a5 {[%emt 0:01:18]} 12. a4 {[%emt 0:02:59]} Qe7 {[%emt 0:00:47]} 13. Rc1 {[%emt 0:00:12]} Bg4 {[%emt 0:09:29]} 14. O-O {[%emt 0:42:10]} Qb4 {[%emt 0:04:28]} 15. Qxb4 {[%emt 0:01:05]} axb4 {[%emt 0:00:08]} 16. Ne4 {[%emt 0:01:26]} Nxd5 {[%emt 0:03:58]} 17. Nxf6+ {[%emt 0:10:48]} gxf6 {[%emt 0:00:57]} 18. Bc4 {[%emt 0:02:14]} Bxf3 {[%emt 0:09:01]} 19. gxf3 {[%emt 0:00:10]} Nf4 {[%emt 0:00:55]} 20. Rfe1 {[%emt 0:03:38]} Rfe8 {[%emt 0:10:15]} 21. Re3 {[%emt 0:11:09]} c6 {[%emt 0:11:57]} 22. Kf1 {[%emt 0:05:31]} Kg7 {[%emt 0:05:49]} 23. b3 {[%emt 0:04:10]} Rad8 {[%emt 0:06:17]} 24. Rce1 {[%emt 0:01:52]} Kf8 {[%emt 0:02:23]} 25. Rxe8+ {[%emt 0:11:07]} Rxe8 {[%emt 0:00:53]} 26. Rxe8+ {[%emt 0:00:11]} Kxe8 {[%emt 0:00:08]} 27. Ke1 {[%emt 0:00:07]} Ke7 {[%emt 0:07:32]} 28. Kd2 {[%emt 0:00:06]} Nd5 {[%emt 0:05:36]} 29. Bd3 {[%emt 0:00:53]} h6 {[%emt 0:00:38]} 30. Bf5 {[%emt 0:00:42]} b6 {[%emt 0:01:10]} 31. Kd3 {[%emt 0:01:17]} Kd6 {[%emt 0:01:08]} 32. Be4 {[%emt 0:01:32]} Nf4+ {[%emt 0:01:05]} 33. Kc4 {[%emt 0:00:40]} Nh3 {[%emt 0:02:29]} 34. Kxb4 {[%emt 0:00:54]} Nxf2 {[%emt 0:00:31]} 35. Kc4 {[%emt 0:00:47]} Nh3 {[%emt 0:01:58]} 36. b4 {[%emt 0:00:21]} Ng5 {[%emt 0:01:16]} 37. h4 {[%emt 0:00:49]} Ne6 {[%emt 0:01:18]} 38. Bxc6 {[%emt 0:02:44]} Nf4 {[%emt 0:01:55]} 39. Kb5 {[%emt 0:02:25]} Kc7 {[%emt 0:01:02]} 40. d5 {[%emt 0:00:48]} Ng6 {[%emt 0:00:49]} 41. d6+ {[%emt 0:52:36]} Kxd6 {[%emt 0:50:30]} 42. Kxb6 {[%emt 0:00:05]} Nxh4 {[%emt 0:00:00]} 43. a5 {[%emt 0:00:00]} Ng6 {[%emt 0:00:00]} 44. a6 {[%emt 0:00:00]} Ne7 {[%emt 0:00:00]} 45. Bb7 {[%emt 0:00:00]} h5 {[%emt 0:00:00]} 46. a7 {[%emt 0:00:00]} 1-0

[Event "4NCL 2021-22"]
[Site "England"]
[Date "2022.03.26"]
[Round "5.55"]
[White "Arora, Tashika"]
[Black "Khoury, Theo"]
[Result "0-1"]
[ECO "A67"]
[WhiteElo "1823"]
[BlackElo "2011"]
[Annotator "ChessBase"]
[PlyCount "158"]
[EventDate "2021.11.27"]
[EventType "team-tourn"]
[EventCountry "ENG"]
[SourceTitle "playchess.com"]
[Source "ChessBase"]
[SourceQuality "1"]
[TimeControl "40/6000+30:3000+30"]

1. d4 {[%emt 0:05:11]} Nf6 {[%emt 0:00:09]} 2. c4 {[%emt 0:00:05]} c5 {[%emt 0:00:07]} 3. d5 {[%emt 0:00:06]} e6 {[%emt 0:00:11]} 4. Nc3 {[%emt 0:00:04]} exd5 {[%emt 0:00:09]} 5. cxd5 {[%emt 0:00:05]} d6 {[%emt 0:00:07]} 6. e4 {[%emt 0:00:14]} g6 {[%emt 0:00:06]} 7. f4 {[%emt 0:00:10]} Bg7 {[%emt 0:00:05]} 8. Bb5+ {[%emt 0:00:11]} Nfd7 {[%emt 0:00:07]} 9. Bd3 {[%emt 0:00:30]} O-O {[%emt 0:00:10]} 10. Nf3 {[%emt 0:00:17]} Nf6 {[%emt 0:02:34]} 11. O-O {[%emt 0:01:53]} Bg4 {[%emt 0:00:26]} 12. Be3 {[%emt 0:02:06]} Nbd7 {[%emt 0:01:05]} 13. h3 {[%emt 0:01:42]} Bxf3 {[%emt 0:00:15]} 14. Qxf3 {[%emt 0:00:21]} a6 {[%emt 0:01:26]} 15. a4 {[%emt 0:04:17]} Qa5 {[%emt 0:06:05]} 16. Qe2 {[%emt 0:04:32]} Rfe8 {[%emt 0:03:38]} 17. Kh2 {[%emt 0:03:23]} c4 {[%emt 0:02:34]} 18. Bc2 {[%emt 0:04:12]} Rac8 {[%emt 0:06:33]} 19. f5 {[%emt 0:05:22]} Nc5 {[%emt 0:04:11]} 20. fxg6 {[%emt 0:06:01]} fxg6 {[%emt 0:06:00]} 21. Bf4 {[%emt 0:06:27]} Qd8 {[%emt 0:07:01]} 22. g4 {[%emt 0:05:24]} Qe7 {[%emt 0:04:30]} 23. Qg2 {[%emt 0:01:48]} Nfd7 {[%emt 0:07:34]} 24. Rae1 {[%emt 0:06:48]} Be5 {[%emt 0:04:47]} 25. Kh1 {[%emt 0:07:16]} Bxf4 {[%emt 0:02:02]} 26. Rxf4 {[%emt 0:00:15]} Ne5 {[%emt 0:00:29]} 27. Ref1 {[%emt 0:01:28]} Rf8 {[%emt 0:04:33]} 28. g5 {[%emt 0:06:27]} Rxf4 {[%emt 0:02:25]} 29. Rxf4 {[%emt 0:00:13]} Rf8 {[%emt 0:00:18]} 30. Ne2 {[%emt 0:05:19]} Ned3 {[%emt 0:05:19]} 31. Bxd3 {[%emt 0:02:57]} cxd3 {[%emt 0:00:10]} 32. Rxf8+ {[%emt 0:01:03]} Qxf8 {[%emt 0:00:07]} 33. Nc3 {[%emt 0:03:36]} Qf4 {[%emt 0:01:08]} 34. a5 {[%emt 0:07:15]} d2 {[%emt 0:01:57]} 35. Qe2 {[%emt 0:03:11]} Qxg5 {[%emt 0:05:57]} 36. b4 {[%emt 0:03:43]} Nd7 {[%emt 0:03:16]} 37. Nb1 {[%emt 0:01:25]} Qe3 {[%emt 0:02:01]} 38. Qxe3 {[%emt 0:02:00]} d1=Q+ {[%emt 0:00:07]} 39. Qg1 {[%emt 0:00:14]} Qd3 {[%emt 0:00:10]} 40. Qe1 {[%emt 0:04:13]} Qxh3+ {[%emt 0:00:19]} 41. Kg1 {[%emt 0:50:03]} Ne5 {[%emt 0:50:53]} 42. Nd2 {[%emt 0:07:46]} Qg4+ {[%emt 0:04:19]} 43. Kf1 {[%emt 0:00:00]} Nd3 {[%emt 0:00:00]} 44. Qe3 {[%emt 0:00:00]} Nf4 {[%emt 0:00:00]} 45. Nc4 {[%emt 0:00:00]} Qg2+ {[%emt 0:00:00]} 46. Ke1 {[%emt 0:00:00]} Qg5 {[%emt 0:00:00]} 47. Kd1 {[%emt 0:00:00]} Qf6 {[%emt 0:00:00]} 48. Kc2 {[%emt 0:00:00]} Ng2 {[%emt 0:00:00]} 49. Qg3 {[%emt 0:00:00]} Qd4 {[%emt 0:00:00]} 50. Nxd6 {[%emt 0:00:00]} Ne3+ {[%emt 0:00:00]} 51. Kb3 {[%emt 0:00:00]} Qd3+ {[%emt 0:00:00]} 52. Ka2 {[%emt 0:00:00]} Qc2+ {[%emt 0:00:00]} 53. Ka3 {[%emt 0:00:00]} Nd1 {[%emt 0:00:00]} 54. Qe5 {[%emt 0:00:00]} Qc1+ {[%emt 0:00:00]} 55. Kb3 {[%emt 0:00:00]} Qb1+ {[%emt 0:00:00]} 56. Ka3 {[%emt 0:00:00]} Qd3+ {[%emt 0:00:00]} 57. Ka2 {[%emt 0:00:00]} Nc3+ {[%emt 0:00:00]} 58. Kb3 {[%emt 0:00:00]} Nxd5+ {[%emt 0:00:00]} 59. Kb2 {[%emt 0:00:00]} Qd2+ {[%emt 0:00:00]} 60. Kb3 {[%emt 0:00:00]} Qxb4+ {[%emt 0:00:00]} 61. Kc2 {[%emt 0:00:00]} Qc5+ {[%emt 0:00:00]} 62. Kb3 {[%emt 0:00:00]} Qe3+ {[%emt 0:00:00]} 63. Kc4 {[%emt 0:00:00]} Nc7 {[%emt 0:02:30]} 64. Qe7 {[%emt 0:00:33]} Qe2+ {[%emt 0:02:28]} 65. Kb4 {[%emt 0:00:57]} Nd5+ {[%emt 0:00:12]} 66. exd5 {[%emt 0:01:28]} Qxe7 {[%emt 0:00:09]} 67. Kc5 {[%emt 0:00:13]} Qc7+ {[%emt 0:00:08]} 68. Kd4 {[%emt 0:00:16]} Qxd6 {[%emt 0:00:08]} 69. Ke4 {[%emt 0:00:18]} Qb4+ {[%emt 0:00:07]} 70. Ke5 {[%emt 0:00:06]} Qxa5 {[%emt 0:00:07]} 71. Ke6 {[%emt 0:00:09]} Qd8 {[%emt 0:00:54]} 72. d6 {[%emt 0:00:12]} a5 {[%emt 0:00:05]} 73. Kd5 {[%emt 0:00:09]} a4 {[%emt 0:00:04]} 74. Kc4 {[%emt 0:00:16]} Qxd6 {[%emt 0:00:07]} 75. Kb5 {[%emt 0:00:07]} a3 {[%emt 0:00:07]} 76. Kc4 {[%emt 0:00:03]} a2 {[%emt 0:00:04]} 77. Kb5 {[%emt 0:00:03]} a1=Q {[%emt 0:00:16]} 78. Kc4 {[%emt 0:00:02]} Qdd4+ {[%emt 0:00:19]} 79. Kb5 {[%emt 0:00:16]} Qa6# {[%emt 0:00:36]} 0-1

[Event "4NCL 2021-22"]
[Site "England"]
[Date "2022.03.26"]
[Round "5.56"]
[White "Bennett, Patrick"]
[Black "Zakarian, Dimitrios Levon"]
[Result "1/2-1/2"]
[ECO "A30"]
[WhiteElo "1963"]
[BlackElo "1962"]
[Annotator "NA"]
[PlyCount "54"]
[EventDate "2021.11.27"]
[EventType "team-tourn"]
[EventCountry "ENG"]
[SourceTitle "playchess.com"]
[Source "ChessBase"]
[SourceQuality "1"]
[TimeControl "40/6000+30:3000+30"]

1. Nf3 {[%emt 0:00:06]} Nf6 {[%emt 0:00:07]} 2. c4 {[%emt 0:00:06]} e6 {[%emt 0:00:09]} 3. g3 {[%emt 0:00:14]} b6 {[%emt 0:00:30]} 4. Bg2 {[%emt 0:00:35]} Bb7 {[%emt 0:00:28]} 5. b3 {[%emt 0:01:11]} Be7 {[%emt 0:02:39]} 6. Bb2 {[%emt 0:00:12]} O-O {[%emt 0:00:43]} 7. O-O {[%emt 0:00:07]} c5 {[%emt 0:01:13]} 8. e3 {[%emt 0:06:10]} Qc7 {[%emt 0:04:52]} 9. Nc3 {[%emt 0:02:32]} a6 {[%emt 0:02:52]} 10. Rc1 {[%emt 0:01:52]} d6 {[%emt 0:03:25]} 11. d4 {[%emt 0:01:08]} Nbd7 {[%emt 0:06:44]} 12. Qc2 {[%emt 0:02:18]} Rac8 {[%emt 0:02:08]} 13. Rfd1 {[%emt 0:02:37]} cxd4 {[%emt 0:03:14]} 14. exd4 {[%emt 0:00:16]} Rfe8 {[%emt 0:01:30]} 15. Qd3 {[%emt 0:04:55]} e5 {[%emt 0:08:36]} 16. Nd5 {[%emt 0:12:12]} Qb8 {[%emt 0:01:22]} 17. dxe5 {[%emt 0:06:15]} Nxe5 {[%emt 0:19:43]} 18. Nxe5 {[%emt 0:22:15]} dxe5 {[%emt 0:00:32]} 19. Bxe5 {[%emt 0:00:56]} Qxe5 {[%emt 0:00:35]} 20. Re1 {[%emt 0:01:15]} Qg5 {[%emt 0:02:15]} 21. Nxf6+ {[%emt 0:02:46]} Qxf6 {[%emt 0:02:09]} 22. Bxb7 {[%emt 0:00:09]} Rcd8 {[%emt 0:00:08]} 23. Qf3 {[%emt 0:05:11]} Qxf3 {[%emt 0:01:23]} 24. Bxf3 {[%emt 0:00:02]} Bb4 {[%emt 0:00:48]} 25. Rxe8+ {[%emt 0:01:34]} Rxe8 {[%emt 0:00:05]} 26. Rd1 {[%emt 0:00:15]} Re1+ {[%emt 0:00:09]} 27. Rxe1 {[%emt 0:00:10]} Bxe1 {[%emt 0:00:04]} 1/2-1/2

[Event "4NCL 2021-22"]
[Site "England"]
[Date "2022.03.26"]
[Round "5.58"]
[White "Murphy, Hugh W"]
[Black "McKay, Roderick M"]
[Result "1/2-1/2"]
[ECO "B40"]
[WhiteElo "2107"]
[BlackElo "2208"]
[Annotator "ChessBase"]
[PlyCount "80"]
[EventDate "2021.11.27"]
[EventType "team-tourn"]
[EventCountry "ENG"]
[SourceTitle "playchess.com"]
[Source "ChessBase"]
[SourceQuality "1"]
[TimeControl "40/6000+30:3000+30"]

1. e4 {[%emt 0:01:11]} c5 {[%emt 0:00:16]} 2. Nf3 {[%emt 0:00:30]} e6 {[%emt 0:01:29]} 3. b4 {[%emt 0:01:33]} d6 {[%emt 0:02:15]} 4. bxc5 {[%emt 0:12:19]} dxc5 {[%emt 0:01:42]} 5. Nc3 {[%emt 0:05:45]} Nc6 {[%emt 0:01:20]} 6. Bb5 {[%emt 0:01:18]} Bd7 {[%emt 0:01:56]} 7. O-O {[%emt 0:00:40]} Nge7 {[%emt 0:01:30]} 8. Bb2 {[%emt 0:03:52]} a6 {[%emt 0:00:58]} 9. Bxc6 {[%emt 0:01:07]} Nxc6 {[%emt 0:00:21]} 10. Re1 {[%emt 0:01:18]} e5 {[%emt 0:04:52]} 11. Nd5 {[%emt 0:02:01]} Bd6 {[%emt 0:00:13]} 12. Ne3 {[%emt 0:03:05]} Be6 {[%emt 0:06:44]} 13. d3 {[%emt 0:14:19]} O-O {[%emt 0:00:57]} 14. h3 {[%emt 0:04:35]} f6 {[%emt 0:01:53]} 15. Nh4 {[%emt 0:02:00]} g6 {[%emt 0:02:21]} 16. Qf3 {[%emt 0:02:05]} f5 {[%emt 0:03:39]} 17. g3 {[%emt 0:02:48]} f4 {[%emt 0:12:04]} 18. Nc4 {[%emt 0:09:21]} Bc7 {[%emt 0:01:21]} 19. Qg2 {[%emt 0:01:55]} b5 {[%emt 0:06:52]} 20. Nd2 {[%emt 0:00:58]} Nb4 {[%emt 0:00:26]} 21. Ndf3 {[%emt 0:05:54]} Nxc2 {[%emt 0:06:21]} 22. gxf4 {[%emt 0:11:45]} Qf6 {[%emt 0:12:11]} 23. Rec1 {[%emt 0:04:45]} Nxa1 {[%emt 0:06:19]} 24. Bxa1 {[%emt 0:03:58]} c4 {[%emt 0:02:37]} 25. f5 {[%emt 0:01:35]} Bf7 {[%emt 0:01:42]} 26. d4 {[%emt 0:00:33]} Rfe8 {[%emt 0:07:26]} 27. dxe5 {[%emt 0:01:33]} Bxe5 {[%emt 0:03:02]} 28. Nxe5 {[%emt 0:00:13]} Rxe5 {[%emt 0:11:18]} 29. Nf3 {[%emt 0:00:59]} c3 {[%emt 0:02:08]} 30. Nxe5 {[%emt 0:03:57]} Qxe5 {[%emt 0:00:39]} 31. Bxc3 {[%emt 0:00:06]} Qf4 {[%emt 0:00:33]} 32. Re1 {[%emt 0:03:19]} Rd8 {[%emt 0:01:42]} 33. Bf6 {[%emt 0:02:15]} Re8 {[%emt 0:03:38]} 34. Re3 {[%emt 0:00:20]} Rc8 {[%emt 0:01:36]} 35. Re1 {[%emt 0:02:00]} Re8 {[%emt 0:00:07]} 36. Bg5 {[%emt 0:00:32]} Qe5 {[%emt 0:01:32]} 37. a3 {[%emt 0:00:21]} a5 {[%emt 0:01:02]} 38. Re3 {[%emt 0:01:14]} b4 {[%emt 0:01:17]} 39. axb4 {[%emt 0:00:05]} axb4 {[%emt 0:00:03]} 40. Qg3 {[%emt 0:01:49]} Qxg3+ {[%emt 0:01:12]} 1/2-1/2